[Event "Early-Titled-Tuesday-Blitz-January-23-2024"]
[Site "Chess.com"]
[Date "2024.01.23"]
[Round "7"]
[White "Alexei_Gubajdullin"]
[Black "Arystanner"]
[Result "0-1"]
[WhiteElo "2586"]
[BlackElo "2786"]
[TimeControl "180+1"]
[EndTime "9:18:28 PST"]
[Termination "Arystanner won by resignation"]

1. d4 {[%clk 0:03:00.2]} 1... Nf6 {[%clk 0:02:54.1]} 2. Nf3 {[%clk 0:02:58.9]}
2... g6 {[%clk 0:02:54.5]} 3. Bf4 {[%clk 0:02:58.8]} 3... Bg7 {[%clk 0:02:54.7]}
4. e3 {[%clk 0:02:59.1]} 4... O-O {[%clk 0:02:55.4]} 5. Be2 {[%clk 0:02:59.2]}
5... d6 {[%clk 0:02:56.1]} 6. O-O {[%clk 0:02:59.1]} 6... c5 {[%clk 0:02:56.9]}
7. c3 {[%clk 0:02:57.7]} 7... Nc6 {[%clk 0:02:56.8]} 8. h3 {[%clk 0:02:57.3]}
8... cxd4 {[%clk 0:02:57.2]} 9. exd4 {[%clk 0:02:56.6]} 9... Nd5 {[%clk
0:02:57.9]} 10. Bg3 {[%clk 0:02:54.1]} 10... e5 {[%clk 0:02:58.2]} 11. Na3
{[%clk 0:02:53.1]} 11... e4 {[%clk 0:02:51.4]} 12. Ne1 {[%clk 0:02:50.8]} 12...
f5 {[%clk 0:02:51.7]} 13. Bc4 {[%clk 0:02:46.1]} 13... Be6 {[%clk 0:02:51.4]}
14. Qb3 {[%clk 0:02:42.5]} 14... Nce7 {[%clk 0:02:40.7]} 15. Bh4 {[%clk
0:02:41.8]} 15... Bf6 {[%clk 0:02:39.4]} 16. Bxf6 {[%clk 0:02:30.9]} 16... Rxf6
{[%clk 0:02:39.6]} 17. Nec2 {[%clk 0:02:30.4]} 17... Kg7 {[%clk 0:02:33.6]} 18.
Ne3 {[%clk 0:02:13.3]} 18... Nxe3 {[%clk 0:02:24]} 19. fxe3 {[%clk 0:02:12.6]}
19... d5 {[%clk 0:02:24.3]} 20. Be2 {[%clk 0:02:11.4]} 20... Rb8 {[%clk
0:02:19.2]} 21. Nc2 {[%clk 0:02:02.6]} 21... Qd6 {[%clk 0:02:17.3]} 22. Qb4
{[%clk 0:01:56.7]} 22... Qc7 {[%clk 0:02:05.3]} 23. a4 {[%clk 0:01:45]} 23... g5
{[%clk 0:02:03.5]} 24. Qc5 {[%clk 0:01:41.4]} 24... Nc6 {[%clk 0:01:49.4]} 25.
Bb5 {[%clk 0:01:36.6]} 25... f4 {[%clk 0:01:44.9]} 26. Nb4 {[%clk 0:01:25.6]}
26... Rd8 {[%clk 0:01:35.3]} 27. Bxc6 {[%clk 0:01:18.8]} 27... bxc6 {[%clk
0:01:32.7]} 28. Nxc6 {[%clk 0:01:17.2]} 28... Rd7 {[%clk 0:00:55.6]} 29. Ne5
{[%clk 0:01:14.7]} 29... Qxc5 {[%clk 0:00:49.4]} 30. dxc5 {[%clk 0:01:14.3]}
30... Rc7 {[%clk 0:00:50]} 31. b4 {[%clk 0:01:13.8]} 31... Rf5 {[%clk
0:00:34.2]} 32. Ng4 {[%clk 0:01:02.3]} 32... h5 {[%clk 0:00:34]} 33. Nh2 {[%clk
0:01:00.9]} 33... a5 {[%clk 0:00:32.6]} 34. h4 {[%clk 0:00:58]} 34... axb4
{[%clk 0:00:31.9]} 35. cxb4 {[%clk 0:00:54.3]} 35... fxe3 {[%clk 0:00:32.5]} 36.
Rfe1 {[%clk 0:00:31.9]} 36... d4 {[%clk 0:00:32.1]} 37. a5 {[%clk 0:00:31.4]}
37... Bc4 {[%clk 0:00:18.6]} 38. Nf1 {[%clk 0:00:29]} 38... gxh4 {[%clk
0:00:10.9]} 39. Reb1 {[%clk 0:00:24.3]} 39... Bb5 {[%clk 0:00:11.2]} 40. a6
{[%clk 0:00:23]} 40... Ra7 {[%clk 0:00:11.3]} 41. Ra5 {[%clk 0:00:22.9]} 41...
Bxf1 {[%clk 0:00:06.8]} 42. Rxf1 {[%clk 0:00:22]} 42... e2 {[%clk 0:00:06.6]}
43. Re1 {[%clk 0:00:16.7]} 43... d3 {[%clk 0:00:06.3]} 44. Ra2 {[%clk
0:00:16.7]} 44... e3 {[%clk 0:00:06.4]} 45. Rexe2 {[%clk 0:00:13.1]} 45... dxe2
{[%clk 0:00:06.6]} 46. Rxe2 {[%clk 0:00:13.4]} 46... Rxa6 {[%clk 0:00:07.2]} 47.
Rxe3 {[%clk 0:00:13.8]} 47... Ra1+ {[%clk 0:00:07.7]} 48. Kh2 {[%clk 0:00:11.9]}
48... Rb1 {[%clk 0:00:07.4]} 49. Re4 {[%clk 0:00:11.4]} 49... Rff1 {[%clk
0:00:07.2]} 50. Rxh4 {[%clk 0:00:05.8]} 50... Rh1+ {[%clk 0:00:07.6]} 51. Kg3
{[%clk 0:00:06.7]} 51... Rxh4 {[%clk 0:00:08.5]} 52. Kxh4 {[%clk 0:00:07.4]}
52... Rxb4+ {[%clk 0:00:09.4]} 53. Kxh5 {[%clk 0:00:08.2]} 53... Rc4 {[%clk
0:00:10.3]} 54. g4 {[%clk 0:00:09]} 54... Rxc5+ {[%clk 0:00:11.2]} 55. g5 {[%clk
0:00:09.9]} 55... Kh7 {[%clk 0:00:11.7]} 56. Kg4 {[%clk 0:00:09.8]} 56... Kg6
{[%clk 0:00:12.6]} 57. Kf4 {[%clk 0:00:10.3]} 57... Rxg5 {[%clk 0:00:13.5]} 58.
Ke4 {[%clk 0:00:10.8]} 58... Rf5 {[%clk 0:00:14.4]} 59. Kd4 {[%clk 0:00:10.9]}
59... Kf6 {[%clk 0:00:15.3]} 60. Ke4 {[%clk 0:00:11.3]} 60... Ke6 {[%clk
0:00:16.2]} 0-1

[Event "Early-Titled-Tuesday-Blitz-January-23-2024"]
[Site "Chess.com"]
[Date "2024.01.23"]
[Round "7"]
[White "Hamisandwich"]
[Black "Statham_01"]
[Result "1-0"]
[WhiteElo "2706"]
[BlackElo "2533"]
[TimeControl "180+1"]
[EndTime "9:18:29 PST"]
[Termination "Hamisandwich won by resignation"]

1. e4 {[%clk 0:03:00.9]} 1... e5 {[%clk 0:03:00.1]} 2. f4 {[%clk 0:02:59.5]}
2... d5 {[%clk 0:02:59]} 3. exd5 {[%clk 0:02:58.2]} 3... exf4 {[%clk 0:02:58.5]}
4. Nf3 {[%clk 0:02:57]} 4... Nf6 {[%clk 0:02:58.6]} 5. Bb5+ {[%clk 0:02:51.5]}
5... c6 {[%clk 0:02:57.4]} 6. dxc6 {[%clk 0:02:50.1]} 6... Nxc6 {[%clk
0:02:58.3]} 7. d4 {[%clk 0:02:44.9]} 7... Bd6 {[%clk 0:02:52.2]} 8. O-O {[%clk
0:02:27.2]} 8... O-O {[%clk 0:02:52.3]} 9. c4 {[%clk 0:02:17.3]} 9... Bg4 {[%clk
0:02:48.4]} 10. Bxc6 {[%clk 0:02:08.7]} 10... bxc6 {[%clk 0:02:49.3]} 11. Nc3
{[%clk 0:02:08.7]} 11... Rb8 {[%clk 0:02:42.8]} 12. Ne2 {[%clk 0:01:58.4]} 12...
Re8 {[%clk 0:02:27.1]} 13. Nxf4 {[%clk 0:01:52.5]} 13... Bxf4 {[%clk 0:02:17.6]}
14. Bxf4 {[%clk 0:01:53.4]} 14... Rxb2 {[%clk 0:02:14.8]} 15. Be5 {[%clk
0:01:43.3]} 15... Nd7 {[%clk 0:01:39.6]} 16. Qc1 {[%clk 0:01:33]} 16... Nxe5
{[%clk 0:00:48.5]} 17. Qxb2 {[%clk 0:01:11]} 17... Nxc4 {[%clk 0:00:47.5]} 18.
Qc3 {[%clk 0:00:59]} 18... Qd5 {[%clk 0:00:35.5]} 19. Rae1 {[%clk 0:00:50.4]}
19... Rxe1 {[%clk 0:00:17.6]} 20. Rxe1 {[%clk 0:00:51.3]} 20... h6 {[%clk
0:00:17.9]} 21. Ne5 {[%clk 0:00:42.3]} 21... Nxe5 {[%clk 0:00:12.2]} 22. dxe5
{[%clk 0:00:41.9]} 22... Be6 {[%clk 0:00:06.7]} 23. a3 {[%clk 0:00:33.4]} 23...
g6 {[%clk 0:00:07.1]} 24. h3 {[%clk 0:00:31.2]} 24... Kh7 {[%clk 0:00:07.5]} 25.
Kh2 {[%clk 0:00:30.3]} 25... h5 {[%clk 0:00:05.6]} 26. Rb1 {[%clk 0:00:27.8]}
26... Qe4 {[%clk 0:00:03.7]} 27. Rb4 {[%clk 0:00:21.1]} 27... Qd5 {[%clk
0:00:04.1]} 28. Rb7 {[%clk 0:00:12.2]} 28... Qe4 {[%clk 0:00:02.7]} 29. Rb4
{[%clk 0:00:09.8]} 29... Qd5 {[%clk 0:00:02.3]} 30. Qd4 {[%clk 0:00:08.5]} 30...
Qa5 {[%clk 0:00:01.4]} 31. Ra4 {[%clk 0:00:08.1]} 31... Qb5 {[%clk 0:00:01.9]}
32. Rxa7 {[%clk 0:00:06.6]} 32... Qe2 {[%clk 0:00:02.5]} 33. Qf4 {[%clk
0:00:04.4]} 33... Bd5 {[%clk 0:00:02.4]} 34. Rxf7+ {[%clk 0:00:04.6]} 34... Bxf7
{[%clk 0:00:03.3]} 35. Qxf7+ {[%clk 0:00:05.3]} 35... Kh6 {[%clk 0:00:04.2]} 36.
Qf4+ {[%clk 0:00:05.6]} 36... Kg7 {[%clk 0:00:03.9]} 37. a4 {[%clk 0:00:05.7]}
37... Qe1 {[%clk 0:00:03.6]} 38. Qf6+ {[%clk 0:00:05.4]} 38... Kh7 {[%clk
0:00:03.8]} 39. e6 {[%clk 0:00:06]} 39... Qe2 {[%clk 0:00:01.5]} 40. e7 {[%clk
0:00:04.4]} 40... h4 {[%clk 0:00:02.1]} 41. Qxh4+ {[%clk 0:00:04]} 41... Kg7
{[%clk 0:00:02.6]} 42. Qg5 {[%clk 0:00:03.5]} 42... Qe4 {[%clk 0:00:02.8]} 43.
h4 {[%clk 0:00:03.1]} 43... c5 {[%clk 0:00:03.5]} 44. a5 {[%clk 0:00:03.1]}
44... c4 {[%clk 0:00:03.9]} 45. a6 {[%clk 0:00:03.6]} 45... c3 {[%clk
0:00:04.4]} 46. Qc5 {[%clk 0:00:03.2]} 46... c2 {[%clk 0:00:04.5]} 47. a7 {[%clk
0:00:03.5]} 47... Qf4+ {[%clk 0:00:05]} 48. Kh3 {[%clk 0:00:03.5]} 48... c1=Q
{[%clk 0:00:04.8]} 49. Qxc1 {[%clk 0:00:03.3]} 49... Qxc1 {[%clk 0:00:05.3]} 50.
e8=Q {[%clk 0:00:03.8]} 50... Qh1+ {[%clk 0:00:05.2]} 51. Kg3 {[%clk 0:00:04.1]}
51... Qe1+ {[%clk 0:00:04.9]} 52. Qxe1 {[%clk 0:00:04.2]} 1-0

[Event "Early-Titled-Tuesday-Blitz-January-23-2024"]
[Site "Chess.com"]
[Date "2024.01.23"]
[Round "7"]
[White "Roman_Ovetchkin"]
[Black "supereagles1201"]
[Result "0-1"]
[WhiteElo "2637"]
[BlackElo "2392"]
[TimeControl "180+1"]
[EndTime "9:18:29 PST"]
[Termination "supereagles1201 won on time"]

1. d4 {[%clk 0:03:00.9]} 1... d5 {[%clk 0:02:59.6]} 2. c4 {[%clk 0:03:00.3]}
2... c6 {[%clk 0:02:59.9]} 3. Nf3 {[%clk 0:02:59.5]} 3... Nf6 {[%clk 0:02:59.9]}
4. Qc2 {[%clk 0:02:59.7]} 4... g6 {[%clk 0:02:58.3]} 5. Bf4 {[%clk 0:02:59.1]}
5... Bg7 {[%clk 0:02:57.9]} 6. e3 {[%clk 0:02:59.1]} 6... O-O {[%clk 0:02:58]}
7. Nc3 {[%clk 0:02:59.3]} 7... c5 {[%clk 0:02:57.5]} 8. dxc5 {[%clk 0:02:51.8]}
8... Qa5 {[%clk 0:02:56.4]} 9. Qa4 {[%clk 0:02:47.1]} 9... Qxa4 {[%clk
0:02:35.5]} 10. Nxa4 {[%clk 0:02:45.5]} 10... dxc4 {[%clk 0:02:35.5]} 11. Bxc4
{[%clk 0:02:44.2]} 11... Nbd7 {[%clk 0:02:21.3]} 12. h3 {[%clk 0:02:35.8]} 12...
Ne4 {[%clk 0:02:20.9]} 13. Ke2 {[%clk 0:02:30]} 13... Ndxc5 {[%clk 0:02:15.4]}
14. Nxc5 {[%clk 0:02:29.4]} 14... Nxc5 {[%clk 0:02:15.4]} 15. Be5 {[%clk
0:02:30]} 15... Bxe5 {[%clk 0:02:10.1]} 16. Nxe5 {[%clk 0:02:30.9]} 16... Be6
{[%clk 0:02:10.3]} 17. Rac1 {[%clk 0:02:28.1]} 17... Rfc8 {[%clk 0:02:04.3]} 18.
Rhd1 {[%clk 0:02:24.2]} 18... f6 {[%clk 0:01:52.7]} 19. b4 {[%clk 0:01:23]}
19... Bxc4+ {[%clk 0:01:21.9]} 20. Nxc4 {[%clk 0:01:22.3]} 20... Ne6 {[%clk
0:01:09]} 21. Na5 {[%clk 0:01:20.8]} 21... Rxc1 {[%clk 0:01:01.5]} 22. Rxc1
{[%clk 0:01:18.5]} 22... b6 {[%clk 0:00:57]} 23. Nc6 {[%clk 0:01:13.5]} 23...
Kf7 {[%clk 0:00:57.3]} 24. Nd4 {[%clk 0:01:07.4]} 24... Nxd4+ {[%clk 0:00:53.4]}
25. exd4 {[%clk 0:01:08.3]} 25... Rd8 {[%clk 0:00:52.9]} 26. Ke3 {[%clk
0:01:05.3]} 26... Rd5 {[%clk 0:00:43.7]} 27. a4 {[%clk 0:01:01.6]} 27... Rd7
{[%clk 0:00:34.8]} 28. Rc6 {[%clk 0:00:57.8]} 28... h5 {[%clk 0:00:28.7]} 29.
Ke4 {[%clk 0:00:52.4]} 29... g5 {[%clk 0:00:23.1]} 30. d5 {[%clk 0:00:38.2]}
30... h4 {[%clk 0:00:22.1]} 31. b5 {[%clk 0:00:34.7]} 31... Ke8 {[%clk
0:00:19.3]} 32. a5 {[%clk 0:00:21.9]} 32... bxa5 {[%clk 0:00:17.7]} 33. Ra6
{[%clk 0:00:22.1]} 33... Kd8 {[%clk 0:00:17.5]} 34. Rxa5 {[%clk 0:00:22.2]}
34... Kc8 {[%clk 0:00:17.6]} 35. Ra6 {[%clk 0:00:20.9]} 35... Kb7 {[%clk
0:00:17.2]} 36. Rc6 {[%clk 0:00:20.9]} 36... Kb8 {[%clk 0:00:15.3]} 37. Kd4
{[%clk 0:00:19.6]} 37... Kb7 {[%clk 0:00:14.9]} 38. Kc5 {[%clk 0:00:19.8]} 38...
Rd8 {[%clk 0:00:14.7]} 39. Re6 {[%clk 0:00:15]} 39... Rd7 {[%clk 0:00:14.8]} 40.
Re2 {[%clk 0:00:13]} 40... Rc7+ {[%clk 0:00:14.7]} 41. Kb4 {[%clk 0:00:13.3]}
41... Rd7 {[%clk 0:00:14.7]} 42. Ka5 {[%clk 0:00:12.6]} 42... Rc7 {[%clk
0:00:12.9]} 43. Re3 {[%clk 0:00:11.4]} 43... Rd7 {[%clk 0:00:12.9]} 44. Re6
{[%clk 0:00:11.4]} 44... Rc7 {[%clk 0:00:11.7]} 45. d6 {[%clk 0:00:10.6]} 45...
exd6 {[%clk 0:00:10]} 46. Rxd6 {[%clk 0:00:08.9]} 46... Rf7 {[%clk 0:00:09.4]}
47. Kb4 {[%clk 0:00:08.6]} 47... Kc7 {[%clk 0:00:09.2]} 48. Kc5 {[%clk 0:00:08]}
48... Kb7 {[%clk 0:00:08.2]} 49. Kd5 {[%clk 0:00:06.4]} 49... Kc7 {[%clk
0:00:08.3]} 50. Re6 {[%clk 0:00:05.7]} 50... Kb7 {[%clk 0:00:07.5]} 51. Ke4
{[%clk 0:00:05.9]} 51... Rf8 {[%clk 0:00:05.1]} 52. Kf5 {[%clk 0:00:05.9]} 52...
Rd8 {[%clk 0:00:03.9]} 53. Kxf6 {[%clk 0:00:02.6]} 53... Rd2 {[%clk 0:00:03.5]}
54. Kxg5 {[%clk 0:00:01.3]} 54... Rxf2 {[%clk 0:00:03.4]} 0-1

[Event "Early-Titled-Tuesday-Blitz-January-23-2024"]
[Site "Chess.com"]
[Date "2024.01.23"]
[Round "7"]
[White "dosto07"]
[Black "Smile2005"]
[Result "1/2-1/2"]
[WhiteElo "2530"]
[BlackElo "2403"]
[TimeControl "180+1"]
[EndTime "9:18:29 PST"]
[Termination "Game drawn by repetition"]

1. e4 {[%clk 0:03:00.9]} 1... c5 {[%clk 0:02:58.5]} 2. Nf3 {[%clk 0:03:01]} 2...
e6 {[%clk 0:02:58.8]} 3. c3 {[%clk 0:03:00.9]} 3... a6 {[%clk 0:02:58.7]} 4. d4
{[%clk 0:03:00.3]} 4... cxd4 {[%clk 0:02:59.4]} 5. cxd4 {[%clk 0:03:01.1]} 5...
b5 {[%clk 0:02:59.9]} 6. Bd3 {[%clk 0:02:59.9]} 6... Bb7 {[%clk 0:03:00]} 7. O-O
{[%clk 0:02:59]} 7... d5 {[%clk 0:02:58.5]} 8. e5 {[%clk 0:02:56.8]} 8... Nc6
{[%clk 0:02:57.5]} 9. a4 {[%clk 0:02:48.1]} 9... b4 {[%clk 0:02:56.8]} 10. Nbd2
{[%clk 0:02:47.9]} 10... Nge7 {[%clk 0:02:51.9]} 11. Nb3 {[%clk 0:02:47.2]}
11... Ng6 {[%clk 0:02:49.5]} 12. Bg5 {[%clk 0:02:44.5]} 12... Qb6 {[%clk
0:02:46.9]} 13. a5 {[%clk 0:02:29.4]} 13... Qa7 {[%clk 0:02:40.6]} 14. Rc1
{[%clk 0:02:28.7]} 14... Rc8 {[%clk 0:02:39.7]} 15. Qe2 {[%clk 0:02:19.9]} 15...
Be7 {[%clk 0:02:33.7]} 16. Bxe7 {[%clk 0:02:19.3]} 16... Ncxe7 {[%clk
0:02:27.3]} 17. Nc5 {[%clk 0:01:58.7]} 17... Nf4 {[%clk 0:02:22.9]} 18. Qd2
{[%clk 0:01:57.2]} 18... Nxd3 {[%clk 0:02:20.7]} 19. Qxd3 {[%clk 0:01:57.4]}
19... O-O {[%clk 0:02:18.5]} 20. Ng5 {[%clk 0:01:37.5]} 20... Ng6 {[%clk
0:02:15.3]} 21. h4 {[%clk 0:01:24.4]} 21... h6 {[%clk 0:02:15]} 22. Ngxe6 {[%clk
0:01:21]} 22... Rfe8 {[%clk 0:01:53.3]} 23. Nxb7 {[%clk 0:01:16.6]} 23... Qxb7
{[%clk 0:01:30.9]} 24. Nc5 {[%clk 0:01:15.4]} 24... Qe7 {[%clk 0:01:27.2]} 25.
g3 {[%clk 0:01:14.2]} 25... Nxe5 {[%clk 0:01:24]} 26. dxe5 {[%clk 0:01:04]}
26... Rxc5 {[%clk 0:01:23.5]} 27. Qxa6 {[%clk 0:00:57.7]} 27... Rxc1 {[%clk
0:01:22.5]} 28. Rxc1 {[%clk 0:00:57.6]} 28... Qxe5 {[%clk 0:01:22.6]} 29. Qc6
{[%clk 0:00:51.3]} 29... Re7 {[%clk 0:01:11.1]} 30. b3 {[%clk 0:00:26.9]} 30...
g6 {[%clk 0:00:56.3]} 31. a6 {[%clk 0:00:24.5]} 31... d4 {[%clk 0:00:49.2]} 32.
Qc4 {[%clk 0:00:18.2]} 32... Kh7 {[%clk 0:00:28.4]} 33. Rd1 {[%clk 0:00:15.2]}
33... Qa5 {[%clk 0:00:15]} 34. Qxd4 {[%clk 0:00:11.9]} 34... Qxa6 {[%clk
0:00:13.7]} 35. Qxb4 {[%clk 0:00:11.9]} 35... Re2 {[%clk 0:00:12.9]} 36. Qf4
{[%clk 0:00:10.7]} 36... Qe6 {[%clk 0:00:10.2]} 37. b4 {[%clk 0:00:08.3]} 37...
Rb2 {[%clk 0:00:08.9]} 38. Kg2 {[%clk 0:00:06.4]} 38... Qc6+ {[%clk 0:00:08.4]}
39. Qf3 {[%clk 0:00:05.3]} 39... Qxf3+ {[%clk 0:00:08.1]} 40. Kxf3 {[%clk
0:00:05.6]} 40... Rxb4 {[%clk 0:00:07.7]} 41. Rd7 {[%clk 0:00:06.1]} 41... Kg7
{[%clk 0:00:08.3]} 42. Rd8 {[%clk 0:00:06.1]} 42... g5 {[%clk 0:00:08.3]} 43.
hxg5 {[%clk 0:00:05.7]} 43... hxg5 {[%clk 0:00:09.2]} 44. Kg2 {[%clk 0:00:06.3]}
44... g4 {[%clk 0:00:09.4]} 45. Rd2 {[%clk 0:00:06.6]} 45... Kf6 {[%clk
0:00:09.6]} 46. Re2 {[%clk 0:00:07.2]} 46... Kg6 {[%clk 0:00:09.8]} 47. Re3
{[%clk 0:00:06.6]} 47... f5 {[%clk 0:00:10.1]} 48. Re2 {[%clk 0:00:06.4]} 48...
Kg5 {[%clk 0:00:10.2]} 49. Re8 {[%clk 0:00:06.3]} 49... Rb3 {[%clk 0:00:10.3]}
50. Rg8+ {[%clk 0:00:06.4]} 50... Kf6 {[%clk 0:00:10.6]} 51. Rf8+ {[%clk
0:00:07]} 51... Kg5 {[%clk 0:00:10.9]} 52. Rg8+ {[%clk 0:00:07.4]} 52... Kf6
{[%clk 0:00:11.2]} 53. Rf8+ {[%clk 0:00:08]} 53... Kg5 {[%clk 0:00:11.7]} 54.
Rg8+ {[%clk 0:00:08.2]} 1/2-1/2

[Event "Early-Titled-Tuesday-Blitz-January-23-2024"]
[Site "Chess.com"]
[Date "2024.01.23"]
[Round "7"]
[White "rasmussvane"]
[Black "DenLaz"]
[Result "1/2-1/2"]
[WhiteElo "3005"]
[BlackElo "3087"]
[TimeControl "180+1"]
[EndTime "9:18:30 PST"]
[Termination "Game drawn by stalemate"]

1. Nf3 {[%clk 0:03:00.9]} 1... d5 {[%clk 0:03:00]} 2. g3 {[%clk 0:03:00.9]} 2...
Nf6 {[%clk 0:02:59.3]} 3. Bg2 {[%clk 0:03:01.1]} 3... e6 {[%clk 0:02:59.9]} 4.
O-O {[%clk 0:02:59.2]} 4... Be7 {[%clk 0:03:00.6]} 5. c4 {[%clk 0:02:58.8]} 5...
O-O {[%clk 0:03:01.2]} 6. d4 {[%clk 0:02:58.1]} 6... c6 {[%clk 0:03:01.2]} 7.
Qc2 {[%clk 0:02:55.3]} 7... b6 {[%clk 0:03:00.5]} 8. b3 {[%clk 0:02:54.4]} 8...
Nbd7 {[%clk 0:03:00.2]} 9. Bb2 {[%clk 0:02:54.7]} 9... Ba6 {[%clk 0:03:00]} 10.
a4 {[%clk 0:02:49.8]} 10... c5 {[%clk 0:02:55.1]} 11. Nbd2 {[%clk 0:02:41.3]}
11... Rc8 {[%clk 0:02:53.3]} 12. e3 {[%clk 0:02:39.3]} 12... Qc7 {[%clk
0:02:44.3]} 13. Rfc1 {[%clk 0:02:36.4]} 13... Rfd8 {[%clk 0:02:42.4]} 14. a5
{[%clk 0:02:30.3]} 14... Bb7 {[%clk 0:02:36]} 15. axb6 {[%clk 0:02:29.8]} 15...
axb6 {[%clk 0:02:36.9]} 16. Qd1 {[%clk 0:02:07.6]} 16... Qb8 {[%clk 0:02:35.2]}
17. Qe2 {[%clk 0:02:02.9]} 17... dxc4 {[%clk 0:02:30]} 18. bxc4 {[%clk
0:02:02.9]} 18... Ne4 {[%clk 0:02:23.6]} 19. Nxe4 {[%clk 0:01:59]} 19... Bxe4
{[%clk 0:02:24.5]} 20. Nd2 {[%clk 0:01:52.2]} 20... Bxg2 {[%clk 0:02:22.7]} 21.
Kxg2 {[%clk 0:01:53.1]} 21... Nf6 {[%clk 0:02:22.7]} 22. Qf3 {[%clk 0:01:47.3]}
22... cxd4 {[%clk 0:01:51.3]} 23. Bxd4 {[%clk 0:01:32.5]} 23... Qc7 {[%clk
0:01:24.2]} 24. Rab1 {[%clk 0:01:31.7]} 24... Nd7 {[%clk 0:01:22.3]} 25. h4
{[%clk 0:01:28.2]} 25... Qc6 {[%clk 0:01:19.8]} 26. Rb3 {[%clk 0:00:54.9]} 26...
h6 {[%clk 0:01:16.8]} 27. Rcb1 {[%clk 0:00:53.6]} 27... Qxf3+ {[%clk 0:01:05.8]}
28. Kxf3 {[%clk 0:00:54.5]} 28... e5 {[%clk 0:01:02.5]} 29. Bc3 {[%clk 0:00:53]}
29... Nc5 {[%clk 0:01:02.8]} 30. Rb5 {[%clk 0:00:39]} 30... Na4 {[%clk
0:01:01.1]} 31. Bb4 {[%clk 0:00:39.3]} 31... Bxb4 {[%clk 0:00:47.3]} 32. R5xb4
{[%clk 0:00:39]} 32... Rxd2 {[%clk 0:00:37.8]} 33. Rxa4 {[%clk 0:00:39.3]} 33...
Rc6 {[%clk 0:00:38.2]} 34. Kg2 {[%clk 0:00:28.5]} 34... Rf6 {[%clk 0:00:36.8]}
35. Rf1 {[%clk 0:00:28.5]} 35... Rc2 {[%clk 0:00:37.3]} 36. Rb4 {[%clk
0:00:27.9]} 36... g6 {[%clk 0:00:31.9]} 37. Rb5 {[%clk 0:00:24.3]} 37... e4
{[%clk 0:00:32.3]} 38. Rb4 {[%clk 0:00:23.7]} 38... Kg7 {[%clk 0:00:32.1]} 39.
c5 {[%clk 0:00:19.7]} 39... bxc5 {[%clk 0:00:32.4]} 40. Rxe4 {[%clk 0:00:20.4]}
40... Rd6 {[%clk 0:00:31.2]} 41. Rf4 {[%clk 0:00:18.4]} 41... g5 {[%clk
0:00:29]} 42. hxg5 {[%clk 0:00:18]} 42... hxg5 {[%clk 0:00:29.9]} 43. Rf5 {[%clk
0:00:18.7]} 43... Kg6 {[%clk 0:00:30.3]} 44. g4 {[%clk 0:00:19.3]} 44... Rf6
{[%clk 0:00:29.3]} 45. Rxf6+ {[%clk 0:00:19.1]} 45... Kxf6 {[%clk 0:00:30.2]}
46. Kf3 {[%clk 0:00:19.1]} 46... c4 {[%clk 0:00:30.2]} 47. Ke4 {[%clk
0:00:19.6]} 47... Kg6 {[%clk 0:00:29.5]} 48. f4 {[%clk 0:00:18.2]} 48... gxf4
{[%clk 0:00:29.6]} 49. exf4 {[%clk 0:00:19.1]} 49... c3 {[%clk 0:00:26]} 50. Kd3
{[%clk 0:00:18.5]} 50... Rg2 {[%clk 0:00:26.6]} 51. Kxc3 {[%clk 0:00:17.2]}
51... Rxg4 {[%clk 0:00:26.2]} 52. Kd4 {[%clk 0:00:16.9]} 52... Kf5 {[%clk
0:00:26.8]} 53. Ke3 {[%clk 0:00:17.3]} 53... Rg3+ {[%clk 0:00:27.4]} 54. Rf3
{[%clk 0:00:13.5]} 54... Kg4 {[%clk 0:00:16.5]} 55. Rxg3+ {[%clk 0:00:13.8]}
55... Kxg3 {[%clk 0:00:17.4]} 56. f5 {[%clk 0:00:14.5]} 56... f6 {[%clk
0:00:15.7]} 57. Ke4 {[%clk 0:00:13.8]} 57... Kg4 {[%clk 0:00:15.4]} 58. Ke3
{[%clk 0:00:14.2]} 58... Kxf5 {[%clk 0:00:13.3]} 59. Kf3 {[%clk 0:00:14.3]}
59... Ke5 {[%clk 0:00:14.1]} 60. Ke3 {[%clk 0:00:14.5]} 60... f5 {[%clk
0:00:15]} 61. Kf3 {[%clk 0:00:14.7]} 61... f4 {[%clk 0:00:15.9]} 62. Kf2 {[%clk
0:00:15.2]} 62... Kf5 {[%clk 0:00:16.8]} 63. Kf3 {[%clk 0:00:15.7]} 63... Ke5
{[%clk 0:00:16.6]} 64. Kf2 {[%clk 0:00:16]} 64... Ke4 {[%clk 0:00:17.5]} 65. Ke2
{[%clk 0:00:16.4]} 65... f3+ {[%clk 0:00:18.4]} 66. Kf2 {[%clk 0:00:16.9]} 66...
Kf4 {[%clk 0:00:19.3]} 67. Kf1 {[%clk 0:00:14]} 67... Ke3 {[%clk 0:00:20.1]} 68.
Ke1 {[%clk 0:00:14.1]} 68... f2+ {[%clk 0:00:20.9]} 69. Kf1 {[%clk 0:00:14.5]}
69... Kf3 {[%clk 0:00:21.8]} 1/2-1/2